Workbook

Sheet Quotation
B12: APR Calculator | Q12: Quotation Model
C13: Scenario 1 | D13: Scenario 2 | E13: Scenario 3
B14: Broker Name: | C14: [Broker Name] | Q14: Total Amount Payable: | U14: =IF(U15=C20,'Workings (A)'!C22,IF(U15=D20,'Workings (B)'!C22,'Workings (C)'!C22)) -> 1039545
B15: Client Name: | C15: [Client Name] | Q15: Number of Payments:*** | U15: 10 | V15: Please input the No of payments
B16: Initial Transaction Amount: | C16: 1000000 | Q16: Fee Amount: | U16: =IF(U15=C20,'Workings (A)'!C17,IF(U15=D20,'Workings (B)'!C17,'Workings (C)'!C17)) -> 45 | V16: Collected with the initial payment
B17: Facility Fee: | C17: Yes | D17: Yes | E17: Yes | F17: Please select if fee applies | Q17: First payment amount collected by broker | U17: 0
B18: Transaction Fee | C18: 0.024 | D18: 0.032 | E18: 0.0395 | Q18: Initial Direct Debit of: | U18: =IF(U15=C20,IF(U17=0,'Workings (A)'!C24,U19+'Workings (A)'!C17),IF(U15=D20,IF(U17=0,'Workings (B)'!C24,U19+'Workings (B)'!C17),IF(U17=0,'Workings (C)'!C24,U19+'Workings (C)'!C17))) -> 103995
B19: Minimum Transaction Fee * | C19: 25 | D19: 25 | E19: 25 | F19: * Please input the amount | Q19: Followed by | R19: =IF(U17=0,(U15-1),U15-2) -> 9 | S19: payments of: | U19: =IF(U15=C20,IF(U17=0,('Workings (A)'!C22-'Workings (A)'!C17)/U15,('Workings (A)'!C22-'Workings (A)'!C17-U17)/(U15-1)),IF(U15=E20,IF(U17=0,('Workings (C)'!C22-'Workings (C)'!C17)/U15,('Workings (C)'!C22-'Workings (C)'!C17-U17)/(U15-1)),IF(U17=0,('Workings (B)'!C22-'Workings (B)'!C17)/U15,('Workings (B)'!C22-'Workings (B)'!C17-U17)/(U15-1)))) -> 103950
B20: Instalment Term | C20: 6 | D20: 8 | E20: 10 | Q20: Anticipated Credit Limit: | U20: =IF(U15=C20,'Workings (A)'!C23,IF(U15=D20,'Workings (B)'!C23,'Workings (C)'!C23)) -> 1039545
B22: Corporation Tax Rate: | C22: 19 | F22: % | Q22: ="*** This is the total number of monthly instalments, including the first payment amount, which may have been collected by "&C14 -> *** This is the total number of monthly instalments, including the first payment amount, which may have been collected by [Broker Name]
B23: Client ROCE:** | C23: 10 | F23: %
B25: Show Corporation Tax | C25: Yes
B26: Show APR | C26: No
B27: APR | C27: ='Workings (A)'!B28 -> 0.045 | D27: ='Workings (B)'!B28 -> 0.06 | E27: ='Workings (C)'!B28 -> 0.075 | F27: APR Variable
B28: Currency | C28: £
B30: This APR is calculated on the assumptions that:
B31: • The credit agreement remains valid for the period agreed and that the parties to the credit agreement fulfil their obligations under the terms and by the dates specified in the agreement; | R31: Overall cashflow position | U31: =Calculations!T26 -> 0
B32: • The rate of the transaction fee will remain at the initial level and will be applicable for the duration of the agreement; | R32: A positive figure indicates a favourable cashflow position by using premium finance
B33: • The Anticipated Credit Limit is drawn down immediately and in full;
B34: • The credit is provided for a period of one year starting from the date of the initial drawdown, the capital is repaid in equal 12
B35: monthly payments commencing one month after the date of the initial drawdown, the final payment made by the borrower clears the
B36: balance of capital and charges, and that charges are applied in accordance with that drawdown and repayments of capital and as
B37: provided for in the consumer credit agreement.
B38: • The facility fee is collected in full with the first payment
B42: Important - Please note
B43: 1. This calculation is for illustration purposes only.
B44: 2. Premium Credit Limited accepts no liability for decisions made or actions taken based on this calculation.
B45: 3 This tool is intended to assist you in the production of personalised quotations for your client provided by you not Premium Credit Ltd
B46: 4 This tool is not for advertising and should not be used to calculate a representative example within the meaning of the FCA rules on financial promotions and customer communications
B47: 5. You should make clear that this quotation is for information purposes only and does not constitute an offer or commitment on the part of Premium Credit Ltd nor does it bind Premium Credit Ltd in any way to provide credit or enter into a credit agreement
B48: 6. Credit is subject to status.
B49: 7. The terms of any credit agreement will be as set out in that document and may differ from those in this quotation. For example the APR, the transaction fee and the credit limit for any individual customer may differ from those set out above
B50: 8. You are responsible for complying with all rules and regulations in relation to financial promotions
B51: 9. For more information regarding current corporation tax rates, please visit https://www.gov.uk/government/publications/rates-and-allowances-corporation-tax/rates-and-allowances-corporation-tax

Sheet Finance Quote
B10: Finance Quotation
A12: Broker: | E12: =Quotation!C14 -> [Broker Name]
A13: Analysis for: | B13: Analysis for: | C13: =Quotation!L15 -> 0 | D13: =Quotation!P10 -> 0 | E13: =Quotation!C15 -> [Client Name]
B16: Number of Payments | E16: =IF(Quotation!C20=0,"x",Quotation!C20) -> 6 | F16: =IF(Quotation!D20=0,"x",Quotation!D20) -> 8 | G16: =IF(Quotation!E20=0,"x",Quotation!E20) -> 10
B18: Initial Premium | E18: =IF($E$16="x","x",Quotation!C16) -> 1000000 | F18: =IF($F$16="x","x",Quotation!C16) -> 1000000 | G18: =IF($G$16="x","x",Quotation!C16) -> 1000000
B20: Transaction Charge | E20: =IF($E$16="x","x",'Workings (A)'!C19/E18) -> 0.024 | F20: =IF($F$16="x","x",'Workings (B)'!C19/F18) -> 0.032 | G20: =IF($G$16="x","x",'Workings (C)'!C19/G18) -> 0.0395
B22: Facility Fee | E22: =IF($E$16="x","x",'Workings (A)'!C17) -> 45 | F22: =IF($F$16="x","x",'Workings (B)'!C17) -> 45 | G22: =IF($G$16="x","x",'Workings (C)'!C17) -> 45
B24: Total Amount Payable | E24: =IF($E$16="x","x",'Workings (A)'!C22) -> 1024045 | F24: =IF($F$16="x","x",'Workings (B)'!C22) -> 1032045 | G24: =IF($G$16="x","x",'Workings (C)'!C22) -> 1039545
B27: Initial Payment | E27: =IF($E$16="x","x",'Workings (A)'!C24) -> 170711.6667 | F27: =IF($F$16="x","x",'Workings (B)'!C24) -> 129045 | G27: =IF($G$16="x","x",'Workings (C)'!C24) -> 103995
B28: Remaining Payments of | E28: =IF($E$16="x","x",'Workings (A)'!C25) -> 170666.6667 | F28: =IF($F$16="x","x",'Workings (B)'!C25) -> 129000 | G28: =IF($G$16="x","x",'Workings (C)'!C25) -> 103950
B33: APR | E33: =IF($E$16="x","x",'Workings (A)'!B28) -> 0.045 | F33: =IF($F$16="x","x",'Workings (B)'!B28) -> 0.06 | G33: =IF($G$16="x","x",'Workings (C)'!B28) -> 0.075
B36: Corporation Tax Savings | E36: =IF(E16="x","x",E20*E18*CBA!$C$23/100) -> 4560 | F36: =IF(F16="x","x",F20*F18*CBA!$C$23/100) -> 6080 | G36: =IF(G16="x","x",G20*G18*CBA!$C$23/100) -> 7505
A42: Important - Please note
A43: 1. This calculation is for illustration purposes only and does not constitute an offer or commitment on the part of Premium Credit Ltd nor does it bind Premium Credit Ltd in any way to provide credit or enter into a Credit Agreement.
A45: 2. Premium Credit Limited accepts no liability for decisions made or actions taken based on this calculation.
A46: 3. Credit is subject to status.
A47: 4. The terms of any Credit Agreement will be as set out in that document and may differ from those in this quotation. For example the transaction fee and the credit limit for any individual customer may differ from those set out above.

Sheet CBA
B10: Cost Benefit Analysis
C12: Broker: | D12: =Quotation!C14 -> [Broker Name] | E12: =Quotation!G9 -> 0 | F12: =Quotation!H9 -> 0 | G12: =Quotation!I9 -> 0 | H12: =Quotation!J9 -> 0
C13: Analysis for: | D13: =Quotation!C15 -> [Client Name] | E13: =Quotation!G10 -> 0 | F13: =Quotation!H10 -> 0 | G13: =Quotation!I10 -> 0 | H13: =Quotation!J10 -> 0
B16: Using both the return on capital employed percentage together with the additional saving to corporation tax this analysis demonstrates the effect on your cashflow position by using premium finance instead of paying the full premium upfront from cash.
B19: Premium Amount: | C19: =Quotation!C16 -> 1000000 | E19: Total Amount Payable: | H19: =Quotation!U14 -> 1039545
B20: Monthly Instalments:* | C20: =Quotation!U15 -> 10 | E20: Initial Direct Debit of: | H20: =Quotation!U18 -> 103995
B21: Transaction Charge | C21: =HLOOKUP(C20,'Finance Quote'!E16:G21,5,FALSE) -> 0.0395 | E21: Followed by | F21: =Quotation!R19 -> 9 | G21: payments of: | H21: =Quotation!U19 -> 103950
B22: Corporation Tax Savings | C22: =HLOOKUP(C20,'Finance Quote'!E16:G38,21,FALSE) -> 7505
B23: Corporation Tax Rate: | C23: =Quotation!C22 -> 19 | D23: %
B24: Client ROCE:** | C24: =Quotation!C23 -> 10 | D24: %
B25: APR | C25: =HLOOKUP(C20,Quotation!C20:E27,8,FALSE) -> 0.075
B28: Overall cashflow position | E28: =Calculations!T26 -> 0
B29: This positive figure indicates a favourable cashflow position by using premium finance
B46: Assumptions/Notes
B47: 1. The loan is repaid by monthly instalments from the date the insurance policy begins
B48: 2. The example shows the effects of using premium finance to enable capital investment by the client at their ROCE rate
B49: 3. The cashflows based on the Premium and Interest Rate above are calculated (after tax is deducted) and is compared with the cashflow
B50: that could be generated if the annual premium was reinvested into the business from the date the policy began
B51: 4. This calculation should only be used for non Consumer Credit Act business with premiums over £3,500
B52: 5. This calculation is for illustration purposes only.
B53: 6. Premium Credit Limited accepts no liability for decisions made or actions taken based on this calculation.
B54: 7. Terms and conditions apply. Credit is Subject to status
B55: *This is the total number of instalments including the initial instalment
B56: ** Return on Capital Employed (ROCE) %

Sheet Calculations (hidden)
L1: CALCULATION OF APR % ( Annual Percentage Rate of Charge)
E3: Deposit | F3: =Quotation!U17 -> 0
B4: PREMIUM | C4: =Quotation!C16 -> 1000000 | E4: Initial Inst | F4: =Quotation!U18 -> 103995
E5: Followed by | F5: =Quotation!U19 -> 103950 | G5: Input Flat % and Term to obtain Apr%
B6: SERVICE CHARGE | C6: =HLOOKUP(C8,CBA!C20:C21,2,FALSE)*C4 -> 39500 | E6: Flat rate % | F6: =C6/C4 -> 0.0395
B8: No OF INSTALMENTS | C8: =Quotation!U15 -> 10 | R8: Client ROCE | S8: Corp Tax %
R9: =Quotation!C23 -> 10 | S9: =Quotation!C22 -> 19
B10: ESTIMATED EIR | C10: 10.93863086 | K10: Month | L10: Instalments paid in advance | M10: Loan Balance Remaining | N10: Service Charge Element | O10: Premium finance service charge (interest) net of tax | P10: Capital Portion Paid Off | Q10: Investment Balance Remaining | R10: Return On Capital Employed (Net of tax) | S10: Tax Deducted | T10: Profit/(Loss)
K12: 1 | L12: =IF(F3>0,F3,IF($F$4>0,$F$4,F5)) -> 103995 | M12: =C4-L12 -> 896005 | N12: =M12*$C$10/100/12 -> 8167.556619 | O12: =N12-S12 -> 6615.720862 | P12: =L12-N12 -> 95827.44338 | Q12: =M12 -> 896005 | R12: =Q12*($R$9/100)/12 -> 7466.708333 | S12: =N12*$S$9/100 -> 1551.835758 | T12: =R12-(N12-S12) -> 850.9874716
K13: 2 | L13: =IF(F3>0,F4,IF($C$8>=2,$F$5,0)) -> 103950 | M13: =M12+N12-L13 -> 800222.5566 | N13: 7294.449294 | O13: 5908.503928 | P13: 96655.55071 | Q13: =IF(L13<=0,0,(+Q12-L13+R12)) -> 799521.7083 | R13: 6662.680903 | S13: =N13*$S$9/100 -> 1385.945366 | T13: 754.1769749
K14: 3 | L14: =IF($C$8>=$K14,$F$5,0) -> 103950 | M14: =M13+N13-L14 -> 703567.0059 | N14: 6413.383136 | O14: 5194.84034 | P14: 97536.61686 | Q14: 702234.3892 | R14: 5851.953244 | S14: =N14*$S$9/100 -> 1218.542796 | T14: 657.1129038
K15: 4 | L15: 103950 | M15: =M14+N14-L15 -> 606030.389 | N15: 5524.285596 | O15: 4474.671333 | P15: 98425.7144 | Q15: 604136.3425 | R15: 5034.469521 | S15: =N15*$S$9/100 -> 1049.614263 | T15: 559.7981877
K16: 5 | L16: 103950 | M16: =IF(L16<=0,0,(+M15+N15-L16)) -> 507604.6746 | N16: 4627.083465 | O16: 3747.937607 | P16: 99322.91653 | Q16: 505220.812 | R16: 4210.173433 | S16: 879.1458584 | T16: 462.2358263
K17: 6 | L17: 103950 | M17: 408281.7581 | N17: 3721.702866 | O17: 3014.579321 | P17: 100228.2971 | Q17: 405480.9854 | R17: 3379.008212 | S17: 707.1235445 | T17: 364.4288908
K18: 7 | L18: 103950 | M18: 308053.461 | N18: 2808.069246 | O18: 2274.536089 | P18: 101141.9308 | Q18: 304909.9936 | R18: 2540.916614 | S18: 533.5331567 | T18: 266.3805248
K19: 8 | L19: 103950 | M19: 206911.5302 | N19: 1886.107375 | O19: 1527.746974 | P19: 102063.8926 | Q19: 203500.9103 | R19: 1695.840919 | S19: 358.3604012 | T19: 168.0939453
K20: 9 | L20: 103950 | M20: 104847.6376 | N20: 955.7413368 | O20: 774.1504828 | P20: 102994.2587 | Q20: 101246.7512 | R20: 843.7229265 | S20: 181.590854 | T20: 69.57244367
K21: 10 | L21: 103950 | M21: 1853.378933 | N21: 16.89452333 | O21: 13.68456389 | P21: 103933.1055 | Q21: -1859.525895 | R21: -15.49604913 | S21: 3.209959432 | T21: -29.18061302
K22: 11 | L22: 0 | M22: 0 | N22: 0 | O22: 0 | P22: 0 | Q22: 0 | R22: 0 | S22: 0 | T22: 0
K23: 12 | L23: 0 | M23: 0 | N23: 0 | O23: 0 | P23: 0 | Q23: 0 | R23: 0 | S23: 0 | T23: 0
K24: 13
K25: - | L25: - | M25: - | N25: - | O25: - | P25: - | Q25: - | R25: - | S25: - | T25: -
L26: =SUM(L12:L25) -> 1039545 | N26: =SUM(N12:N25) -> 41415.27346 | O26: =SUM(O12:O25) -> 33546.3715 | P26: =SUM(P12:P25) -> 998129.7265 | R26: =SUM(R12:R25) -> 37669.97806 | S26: =SUM(S12:S25) -> 7868.901957 | T26: =IF(ROUND(P84,0)<>0,0,SUM(T12:T25)) -> 0
K27: = | L27: = | M27: = | N27: = | O27: = | P27: = | Q27: = | R27: = | S27: = | T27: =
K30: 13 | L30: =IF($C$8>=$K30,$F$5,0) -> 0 | M30: =IF(L30<=0,0,(+M29+N29-L30)) -> 0 | N30: =M30*$C$10/100/12 -> 0 | P30: =L30-N30 -> 0
K31: =K30+1 -> 14 | L31: 0 | M31: 0 | N31: 0 | P31: 0
K32: 15 | L32: 0 | M32: 0 | N32: 0 | P32: 0
K33: 16 | L33: 0 | M33: 0 | N33: 0 | P33: 0
K34: 17 | L34: 0 | M34: 0 | N34: 0 | P34: 0
K35: 18 | L35: 0 | M35: 0 | N35: 0 | P35: 0
K36: 19 | L36: 0 | M36: 0 | N36: 0 | P36: 0
K37: 20 | L37: 0 | M37: 0 | N37: 0 | P37: 0
K38: 21 | L38: 0 | M38: 0 | N38: 0 | P38: 0
K39: 22 | L39: 0 | M39: 0 | N39: 0 | P39: 0
K40: 23 | L40: 0 | M40: 0 | N40: 0 | P40: 0
K41: 24 | L41: 0 | M41: 0 | N41: 0 | P41: 0
K42: 25 | L42: 0 | M42: 0 | N42: 0 | P42: 0
K43: 26 | L43: 0 | M43: 0 | N43: 0 | P43: 0
K44: 27 | L44: 0 | M44: =IF(L44<=0,0,(+M43+N43-L44)) -> 0 | N44: 0 | P44: 0
K45: 28 | L45: 0 | M45: 0 | N45: 0 | P45: 0
K46: 29 | L46: 0 | M46: 0 | N46: 0 | P46: 0
K47: 30 | L47: 0 | M47: 0 | N47: 0 | P47: 0
K48: 31 | L48: 0 | M48: 0 | N48: 0 | P48: 0
K49: 32 | L49: 0 | M49: 0 | N49: 0 | P49: 0
K50: 33 | L50: 0 | M50: 0 | N50: 0 | P50: 0
K51: 34 | L51: 0 | M51: 0 | N51: 0 | P51: 0
K52: 35 | L52: 0 | M52: 0 | N52: 0 | P52: 0
K53: 36 | L53: 0 | M53: 0 | N53: 0 | P53: 0
K55: - | L55: - | M55: - | N55: - | P55: -
P56: =SUM(P30:P54)+P26 -> 998129.7265
K57: = | L57: = | M57: = | N57: = | P57: =
P58: =P56-C4 -> -1870.273456
K59: =K53+1 -> 37 | L59: =IF($C$8>=$K59,$F$5,0) -> 0 | M59: =IF(L59<=0,0,(+M53+N53-L59)) -> 0 | N59: =M59*$C$10/100/12 -> 0 | P59: =L59-N59 -> 0
K60: =K59+1 -> 38 | L60: 0 | M60: =IF(L60<=0,0,(+M59+N59-L60)) -> 0 | N60: 0 | P60: 0
K61: 39 | L61: 0 | M61: 0 | N61: 0 | P61: 0
K62: 40 | L62: 0 | M62: 0 | N62: 0 | P62: 0
K63: 41 | L63: 0 | M63: 0 | N63: 0 | P63: 0
K64: 42 | L64: 0 | M64: 0 | N64: 0 | P64: 0
K65: 43 | L65: 0 | M65: 0 | N65: 0 | P65: 0
K66: 44 | L66: 0 | M66: 0 | N66: 0 | P66: 0
K67: 45 | L67: 0 | M67: 0 | N67: 0 | P67: 0
K68: 46 | L68: 0 | M68: 0 | N68: 0 | P68: 0
K69: 47 | L69: 0 | M69: 0 | N69: 0 | P69: 0
K70: 48 | L70: 0 | M70: 0 | N70: 0 | P70: 0
K71: 49 | L71: 0 | M71: 0 | N71: 0 | P71: 0
K72: 50 | L72: 0 | M72: 0 | N72: 0 | P72: 0
K73: 51 | L73: 0 | M73: 0 | N73: 0 | P73: 0
K74: 52 | L74: 0 | M74: 0 | N74: 0 | P74: 0
K75: 53 | L75: 0 | M75: 0 | N75: 0 | P75: 0
K76: 54 | L76: 0 | M76: 0 | N76: 0 | P76: 0
K77: 55 | L77: 0 | M77: 0 | N77: 0 | P77: 0
K78: 56 | L78: 0 | M78: 0 | N78: 0 | P78: 0
K79: 57 | L79: 0 | M79: 0 | N79: 0 | P79: 0
K80: 58 | L80: 0 | M80: 0 | N80: 0 | P80: 0
K81: 59 | L81: 0 | M81: 0 | N81: 0 | P81: 0
K82: 60 | L82: 0 | M82: 0 | N82: 0 | P82: 0
P84: =SUM(P59:P82)+P56-C4 -> -1870.273456

Sheet Workings (A) (hidden)
A1: APR Calculation - Premium Credit Limit
A3: This APR is calculated on the assumptions that:
A4: • As this calculation is being done at 'Quotation' PCL will be using the Predicted Credit Limit for these purposes
A5: • the agreement remains valid for the period agreed and that the parties fulfil their obligations under the terms and by the dates specified in the agreement;
A6: • the rate of the transaction fee will remain at the initial level and will be applicable for the duration of the agreement;
A7: • the Credit Limit is drawn down immediately and in full;
A8: • the credit is provided for a period of one year starting from the date of the initial drawdown, the capital is repaid in equal
A9: monthly payments commencing one month after the date of the initial drawdown, the final payment made by you clears the
A10: balance of capital and charges, and that charges are applied in accordance with that drawdown and repayments of capital and as
A11: provided for in the consumer credit agreement.
A13: Please input the variable data in the green highlighted fields and the APR can then be calculated using the assumptions below
A15: Quotation
A16: Premium | C16: =Quotation!C16 -> 1000000
A17: Loan Arrangement/Facility Fee | B17: =Quotation!C17 -> Yes | C17: =COUNTIF(B17,"YES")*IF(C16>E38,G38,IF(C16>E37,G37,IF(C16>E36,G36,"error"))) -> 45
A18: No of Instalments | C18: =Quotation!C20 -> 6
A19: Transaction Fee/Service Charge | B19: =Quotation!C18 -> 0.024 | C19: =MAX((+C16*B19),C20) -> 24000
A20: Minimum Transaction Fee | B20: =IF(C20=0,"No","Yes") -> Yes | C20: =Quotation!C19 -> 25
A21: Minimum Transaction Fee (%) | B21: =+C20/C16 -> 2.5e-05
A22: Total Amount Payable | C22: =+C16+C19+C17 -> 1024045
A23: Predicted Credit Limit for APR Purposes | C23: =C16+C17+C19 -> 1024045
A24: Initial Direct Debit of | C24: =(+($C$16+$C$19)/$C$18)+C17 -> 170711.6667
A25: Followed by X instalments of | C25: =+(C16+C19)/C18 -> 170666.6667
A27: Representative APR
B28: =K66 -> 0.045 | C28: APR Variable
A32: APR Total Amount Payable Calculation
A33: Actual Credit Limit for Quotation Purposes | C33: =C23 -> 1024045
A34: Transaction Fees | B34: =+B19 -> 0.024 | C34: =MAX((+C33*B34),C38) -> 24577.08 | E34: Fees Table
A35: Other Fees (eg Facility Fee/Loan Arrangement Fee) | B35: =+B17 -> Yes | C35: =COUNTIF(B35,"YES")*IF(C33>E38,G38,IF(C33>E37,G37,IF(C33>E36,G36,"error"))) -> 45 | E35: From | F35: To | G35: Fee
C36: =+C33+C34+C35 -> 1048667.08 | E36: 1e-05 | F36: =+E37 -> 999.999 | G36: 10
E37: 999.999 | F37: =+E38 -> 4999.999 | G37: 25
A38: MSC (Min Service Charge) | B38: =+C38/C33 -> 2.441298966e-05 | C38: =C20 -> 25 | E38: 4999.999 | F38: 99999999 | G38: 45
A41: APR Calculation Input Values
A42: Total Amount Payable (in facility fees) | C42: =+C36 -> 1048667.08 | D42: Total Payable less Other Fees | F42: =+C42-C44 -> 1048622.08
A43: Credit Limit | C43: =C33 -> 1024045 | D43: Periodic Payment | F43: =((C43*(1+C45))/C46) -> 87385.17333 | L43: Financed | U43: =C42 -> 1048667.08
A44: Other Fees | C44: =+C35 -> 45 | H44: Credit Limit | K44: =-C43 -> -1024045 | L44: =+K44+(K56*K60) -> -1024045 | N44: month | O44: b/f | P44: instal | Q44: net | R44: interest - month | S44: c/f | T44: IRR | U44: Total Payable | V44: NPV | W44: Rate
A45: Interest Rate (Flat) | C45: =MAX(+B34,B38) -> 0.024 | N45: 0 | O45: =+K44+(K60*K56) -> -1024045 | P45: 0 | Q45: =+O45+P45 -> -1024045 | R45: =+Q45*$K$62 -> -3762.851349 | S45: =+Q45+R45 -> -1027807.851 | T45: =L44+P45 -> -1024045 | U45: =+U43-P45 -> 1048667.08 | V45: =+T45 -> -1024045
A46: Number of Periods | C46: 12 | H46: Service Charge | J46: =+C45 -> 0.024 | K46: =+K44*J46 -> -24577.08 | N46: 1 | O46: =+S45 -> -1027807.851 | P46: =IF(N46>K$58,0,K$60)+I50 -> 87430.17333 | Q46: -940377.678 | R46: =+Q46*$K$62 -> -3455.415938 | S46: -943833.094 | T46: =+P46 -> 87430.17333 | U46: =+U45-P46 -> 961236.9067 | V46: =NPV(W46,T46) -> 87110.08749 | W46: =(1+K$62)^N46-1 -> 0.003674498044
I47: (net of any subsidy) | J47: =+L47/L44 -> 0.024 | L47: =+K46 -> -24577.08 | N47: 2 | O47: -943833.094 | P47: =IF(N47>K$58,0,K$60) -> 87385.17333 | Q47: -856447.9206 | R47: -3147.016209 | S47: -859594.9368 | T47: 87385.17333 | U47: 873851.7333 | V47: 86746.50238 | W47: 0.007362498024
H48: Total Payable by Customer | K48: =+K44+K46 -> -1048622.08 | L48: =+L44+L47 -> -1048622.08 | N48: 3 | O48: -859594.9368 | P48: =IF(N48>K$58,0,K$60) -> 87385.17333 | Q48: -772209.7635 | R48: -2837.483265 | S48: -775047.2468 | T48: 87385.17333 | U48: 786466.56 | V48: 86428.91949 | W48: 0.01106404955
A49: Proof | N49: 4 | O49: -775047.2468 | P49: 87385.17333 | Q49: -687662.0734 | R49: -2526.812944 | S49: -690188.8864 | T49: 87385.17333 | U49: 699081.3867 | V49: 86112.49928 | W49: 0.01477920242
A50: Credit Limit | C50: =+C43 -> 1024045 | H50: Facility Fee | I50: =+C44 -> 45 | J50: YES | K50: =IF(J50="YES",-I50,0) -> -45 | N50: 5 | O50: -690188.8864 | P50: 87385.17333 | Q50: -602803.713 | R50: -2215.001064 | S50: -605018.7141 | T50: 87385.17333 | U50: 611696.2133 | V50: 85797.23749 | W50: 0.01850800662
A51: Service Charge | C51: =+C50*C45 -> 24577.08 | H51: Balance Payable by Instalments | K51: =+K48+K50 -> -1048667.08 | N51: 6 | O51: -605018.7141 | P51: 87385.17333 | Q51: -517633.5408 | R51: -1902.043433 | S51: -519535.5842 | T51: 87385.17333 | U51: 524311.04 | V51: 85483.1299 | W51: 0.0222505123
A52: Other Fees | C52: =+C44 -> 45 | N52: 7 | O52: -519535.5842 | P52: 87385.17333 | Q52: -432150.4109 | R52: -1587.935839 | S52: -433738.3467 | T52: 87385.17333 | U52: 436925.8667 | V52: 85170.17227 | W52: 0.0260067698
C53: =+C50+C51+C52 -> 1048667.08 | N53: 8 | O53: -433738.3467 | P53: 87385.17333 | Q53: -346353.1734 | R53: -1272.674058 | S53: -347625.8474 | T53: 87385.17333 | U53: 349540.6933 | V53: 84858.36039 | W53: 0.02977682967
H54: Instalments - Total payable by customer | K54: =+C46 -> 12 | N54: 9 | O54: -347625.8474 | P54: 87385.17333 | Q54: -260240.6741 | R54: -956.2538479 | S54: -261196.9279 | T54: 87385.17333 | U54: 262155.52 | V54: 84547.69007 | W54: 0.03356074262
N55: 10 | O55: -261196.9279 | P55: 87385.17333 | Q55: -173811.7546 | R55: -638.6709523 | S55: -174450.4256 | T55: 87385.17333 | U55: 174770.3467 | V55: 84238.15712 | W55: 0.03735855955
H56: Instalments - held by broker | K56: 0 | N56: 11 | O56: -174450.4256 | P56: 87385.17333 | Q56: -87065.25223 | R56: -319.921099 | S56: -87385.17333 | T56: 87385.17333 | U56: 87385.17333 | V56: 83929.75739 | W56: 0.04117033154
N57: 12 | O57: -87385.17333 | P57: 87385.17333 | Q57: 0 | R57: 0 | S57: 0 | T57: 87385.17333 | U57: 0 | V57: 83622.48673 | W57: 0.04499610989
H58: Instalments - payable to PCL | K58: =+K54-K56 -> 12 | L58: =+K58 -> 12 | P58: =SUM(P45:P57) -> 1048667.08 | R58: =SUM(R45:R57) -> -24622.08 | T58: =SUM(T45:T57) -> 24622.08 | V58: =SUM(V45:V57) -> 2.619344741e-10
H60: Amount of instalment | K60: =F43 -> 87385.17333 | L60: =+K60 -> 87385.17333
H62: Interest Rate | I62: Per Month | K62: =IRR(T45:T57,1%) -> 0.003674498044
H63: Interest Rate | I63: Annual | K63: =+K62*12 -> 0.04409397653
H65: APR | I65: Precise | K65: =((1+K62)^12)-1 -> 0.04499610989
H66: APR | I66: Official | K66: =ROUND(+K65*100,1)/100 -> 0.045
H68: Start | K68: 2014-01-01
H70: End | K70: =+K68+K54*(365/12) -> 2015-01-01
G72: N.B. | H72: The computation does not require dates
H73: Assumed that all Instalments are paid monthly in arrears commencing on day 1 of month 2

Sheet Workings (B) (hidden)
A1: APR Calculation - Premium Credit Limit
A3: This APR is calculated on the assumptions that:
A4: • As this calculation is being done at 'Quotation' PCL will be using the Predicted Credit Limit for these purposes
A5: • the agreement remains valid for the period agreed and that the parties fulfil their obligations under the terms and by the dates specified in the agreement;
A6: • the rate of the transaction fee will remain at the initial level and will be applicable for the duration of the agreement;
A7: • the Credit Limit is drawn down immediately and in full;
A8: • the credit is provided for a period of one year starting from the date of the initial drawdown, the capital is repaid in equal
A9: monthly payments commencing one month after the date of the initial drawdown, the final payment made by you clears the
A10: balance of capital and charges, and that charges are applied in accordance with that drawdown and repayments of capital and as
A11: provided for in the consumer credit agreement.
A13: Please input the variable data in the green highlighted fields and the APR can then be calculated using the assumptions below
A15: Quotation
A16: Premium | C16: =Quotation!C16 -> 1000000
A17: Loan Arrangement/Facility Fee | B17: =Quotation!D17 -> Yes | C17: =COUNTIF(B17,"YES")*IF(C16>E38,G38,IF(C16>E37,G37,IF(C16>E36,G36,"error"))) -> 45
A18: No of Instalments | C18: =Quotation!D20 -> 8
A19: Transaction Fee/Service Charge | B19: =Quotation!D18 -> 0.032 | C19: =MAX((+C16*B19),C20) -> 32000
A20: Minimum Transaction Fee | B20: =IF(C20=0,"No","Yes") -> Yes | C20: =Quotation!D19 -> 25
A21: Minimum Transaction Fee (%) | B21: =+C20/C16 -> 2.5e-05
A22: Total Amount Payable | C22: =+C16+C19+C17 -> 1032045
A23: Predicted Credit Limit for APR Purposes | C23: =C16+C17+C19 -> 1032045
A24: Initial Direct Debit of | C24: =(+($C$16+$C$19)/$C$18)+C17 -> 129045
A25: Followed by X instalments of | C25: =+(C16+C19)/C18 -> 129000
A27: Representative APR
B28: =K66 -> 0.06 | C28: APR Variable
A32: APR Total Amount Payable Calculation
A33: Actual Credit Limit for Quotation Purposes | C33: =C23 -> 1032045
A34: Transaction Fees | B34: =+B19 -> 0.032 | C34: =MAX((+C33*B34),C38) -> 33025.44 | E34: Fees Table
A35: Other Fees (eg Facility Fee/Loan Arrangement Fee) | B35: =+B17 -> Yes | C35: =COUNTIF(B35,"YES")*IF(C33>E38,G38,IF(C33>E37,G37,IF(C33>E36,G36,"error"))) -> 45 | E35: From | F35: To | G35: Fee
C36: =+C33+C34+C35 -> 1065115.44 | E36: 1e-05 | F36: =+E37 -> 999.999 | G36: ='Workings (A)'!G36 -> 10
E37: 999.999 | F37: =+E38 -> 4999.999 | G37: ='Workings (A)'!G37 -> 25
A38: MSC (Min Service Charge) | B38: =+C38/C33 -> 2.422374993e-05 | C38: =C20 -> 25 | E38: 4999.999 | F38: 99999999 | G38: ='Workings (A)'!G38 -> 45
A41: APR Calculation Input Values
A42: Total Amount Payable (in facility fees) | C42: =+C36 -> 1065115.44 | D42: Total Payable less Other Fees | F42: =+C42-C44 -> 1065070.44
A43: Credit Limit | C43: =C33 -> 1032045 | D43: Periodic Payment | F43: =((C43*(1+C45))/C46) -> 88755.87 | L43: Financed | U43: =C42 -> 1065115.44
A44: Other Fees | C44: =+C35 -> 45 | H44: Credit Limit | K44: =-C43 -> -1032045 | L44: =+K44+(K56*K60) -> -1032045 | N44: month | O44: b/f | P44: instal | Q44: net | R44: interest - month | S44: c/f | T44: IRR | U44: Total Payable | V44: NPV | W44: Rate
A45: Interest Rate (Flat) | C45: =MAX(+B34,B38) -> 0.032 | N45: 0 | O45: =+K44+(K60*K56) -> -1032045 | P45: 0 | Q45: =+O45+P45 -> -1032045 | R45: =+Q45*$K$62 -> -5042.884428 | S45: =+Q45+R45 -> -1037087.884 | T45: =L44+P45 -> -1032045 | U45: =+U43-P45 -> 1065115.44 | V45: =+T45 -> -1032045
A46: Number of Periods | C46: 12 | H46: Service Charge | J46: =+C45 -> 0.032 | K46: =+K44*J46 -> -33025.44 | N46: 1 | O46: =+S45 -> -1037087.884 | P46: =IF(N46>K$58,0,K$60)+I50 -> 88800.87 | Q46: -948287.0144 | R46: =+Q46*$K$62 -> -4633.617544 | S46: -952920.632 | T46: =+P46 -> 88800.87 | U46: =+U45-P46 -> 976314.57 | V46: =NPV(W46,T46) -> 88369.07195 | W46: =(1+K$62)^N46-1 -> 0.004886302853
I47: (net of any subsidy) | J47: =+L47/L44 -> 0.032 | L47: =+K46 -> -33025.44 | N47: 2 | O47: -952920.632 | P47: =IF(N47>K$58,0,K$60) -> 88755.87 | Q47: -864164.762 | R47: -4222.570742 | S47: -868387.3327 | T47: 88755.87 | U47: 887558.7 | V47: 87894.8101 | W47: 0.009796481661
H48: Total Payable by Customer | K48: =+K44+K46 -> -1065070.44 | L48: =+L44+L47 -> -1065070.44 | N48: 3 | O48: -868387.3327 | P48: =IF(N48>K$58,0,K$60) -> 88755.87 | Q48: -779631.4627 | R48: -3809.51544 | S48: -783440.9782 | T48: 88755.87 | U48: 798802.83 | V48: 87467.41781 | W48: 0.01473065309
A49: Proof | N49: 4 | O49: -783440.9782 | P49: 88755.87 | Q49: -694685.1082 | R49: -3394.441826 | S49: -698079.55 | T49: 88755.87 | U49: 710046.96 | V49: 87042.10373 | W49: 0.01968893437
A50: Credit Limit | C50: =+C43 -> 1032045 | H50: Facility Fee | I50: =+C44 -> 45 | J50: YES | K50: =IF(J50="YES",-I50,0) -> -45 | N50: 5 | O50: -698079.55 | P50: 88755.87 | Q50: -609323.68 | R50: -2977.340036 | S50: -612301.02 | T50: 88755.87 | U50: 621291.09 | V50: 86618.85776 | W50: 0.02467144332
A51: Service Charge | C51: =+C50*C45 -> 33025.44 | H51: Balance Payable by Instalments | K51: =+K48+K50 -> -1065115.44 | N51: 6 | O51: -612301.02 | P51: 88755.87 | Q51: -523545.15 | R51: -2558.20016 | S51: -526103.3502 | T51: 88755.87 | U51: 532535.22 | V51: 86197.66984 | W51: 0.02967829832
A52: Other Fees | C52: =+C44 -> 45 | N52: 7 | O52: -526103.3502 | P52: 88755.87 | Q52: -437347.4802 | R52: -2137.01224 | S52: -439484.4924 | T52: 88755.87 | U52: 443779.35 | V52: 85778.52996 | W52: 0.03470961833
C53: =+C50+C51+C52 -> 1065115.44 | N53: 8 | O53: -439484.4924 | P53: 88755.87 | Q53: -350728.6224 | R53: -1713.766268 | S53: -352442.3887 | T53: 88755.87 | U53: 355023.48 | V53: 85361.42817 | W53: 0.03976552289
H54: Instalments - Total payable by customer | K54: =+C46 -> 12 | N54: 9 | O54: -352442.3887 | P54: 88755.87 | Q54: -263686.5187 | R54: -1288.452188 | S54: -264974.9709 | T54: 88755.87 | U54: 266267.61 | V54: 84946.35456 | W54: 0.04484613213
N55: 10 | O55: -264974.9709 | P55: 88755.87 | Q55: -176219.1009 | R55: -861.0598953 | S55: -177080.1608 | T55: 88755.87 | U55: 177511.74 | V55: 84533.29926 | W55: 0.04995156676
H56: Instalments - held by broker | K56: 0 | N56: 11 | O56: -177080.1608 | P56: 88755.87 | Q56: -88324.29077 | R56: -431.5792339 | S56: -88755.87 | T56: 88755.87 | U56: 88755.87 | V56: 84122.25246 | W56: 0.0550819481
N57: 12 | O57: -88755.87 | P57: 88755.87 | Q57: 6.724440027e-08 | R57: 3.285765049e-10 | S57: 6.757297678e-08 | T57: 88755.87 | U57: 0 | V57: 83713.20439 | W57: 0.06023739803
H58: Instalments - payable to PCL | K58: =+K54-K56 -> 12 | L58: =+K58 -> 12 | P58: =SUM(P45:P57) -> 1065115.44 | R58: =SUM(R45:R57) -> -33070.44 | T58: =SUM(T45:T57) -> 33070.44 | V58: =SUM(V45:V57) -> 6.338814273e-08
H60: Amount of instalment | K60: =F43 -> 88755.87 | L60: =+K60 -> 88755.87
H62: Interest Rate | I62: Per Month | K62: =IRR(T45:T57,1%) -> 0.004886302853
H63: Interest Rate | I63: Annual | K63: =+K62*12 -> 0.05863563423
H65: APR | I65: Precise | K65: =((1+K62)^12)-1 -> 0.06023739803
H66: APR | I66: Official | K66: =ROUND(+K65*100,1)/100 -> 0.06
H68: Start | K68: 2014-01-01
H70: End | K70: =+K68+K54*(365/12) -> 2015-01-01
G72: N.B. | H72: The computation does not require dates
H73: Assumed that all Instalments are paid monthly in arrears commencing on day 1 of month 2

Sheet Workings (C) (hidden)
A1: APR Calculation - Premium Credit Limit
A3: This APR is calculated on the assumptions that:
A4: • As this calculation is being done at 'Quotation' PCL will be using the Predicted Credit Limit for these purposes
A5: • the agreement remains valid for the period agreed and that the parties fulfil their obligations under the terms and by the dates specified in the agreement;
A6: • the rate of the transaction fee will remain at the initial level and will be applicable for the duration of the agreement;
A7: • the Credit Limit is drawn down immediately and in full;
A8: • the credit is provided for a period of one year starting from the date of the initial drawdown, the capital is repaid in equal
A9: monthly payments commencing one month after the date of the initial drawdown, the final payment made by you clears the
A10: balance of capital and charges, and that charges are applied in accordance with that drawdown and repayments of capital and as
A11: provided for in the consumer credit agreement.
A13: Please input the variable data in the green highlighted fields and the APR can then be calculated using the assumptions below
A15: Quotation
A16: Premium | C16: =Quotation!C16 -> 1000000
A17: Loan Arrangement/Facility Fee | B17: =Quotation!E17 -> Yes | C17: =COUNTIF(B17,"YES")*IF(C16>E38,G38,IF(C16>E37,G37,IF(C16>E36,G36,"error"))) -> 45
A18: No of Instalments | C18: =Quotation!E20 -> 10
A19: Transaction Fee/Service Charge | B19: =Quotation!E18 -> 0.0395 | C19: =MAX((+C16*B19),C20) -> 39500
A20: Minimum Transaction Fee | B20: =IF(C20=0,"No","Yes") -> Yes | C20: =Quotation!E19 -> 25
A21: Minimum Transaction Fee (%) | B21: =+C20/C16 -> 2.5e-05
A22: Total Amount Payable | C22: =+C16+C19+C17 -> 1039545
A23: Predicted Credit Limit for APR Purposes | C23: =C16+C17+C19 -> 1039545
A24: Initial Direct Debit of | C24: =(+($C$16+$C$19)/$C$18)+C17 -> 103995
A25: Followed by X instalments of | C25: =+(C16+C19)/C18 -> 103950
A27: Representative APR
B28: =K66 -> 0.075 | C28: APR Variable
A32: APR Total Amount Payable Calculation
A33: Actual Credit Limit for Quotation Purposes | C33: =C23 -> 1039545
A34: Transaction Fees | B34: =+B19 -> 0.0395 | C34: =MAX((+C33*B34),C38) -> 41062.0275 | E34: Fees Table
A35: Other Fees (eg Facility Fee/Loan Arrangement Fee) | B35: =+B17 -> Yes | C35: =COUNTIF(B35,"YES")*IF(C33>E38,G38,IF(C33>E37,G37,IF(C33>E36,G36,"error"))) -> 45 | E35: From | F35: To | G35: Fee
C36: =+C33+C34+C35 -> 1080652.028 | E36: 1e-05 | F36: =+E37 -> 999.999 | G36: ='Workings (A)'!G36 -> 10
E37: 999.999 | F37: =+E38 -> 4999.999 | G37: ='Workings (A)'!G37 -> 25
A38: MSC (Min Service Charge) | B38: =+C38/C33 -> 2.404898297e-05 | C38: =C20 -> 25 | E38: 4999.999 | F38: 99999999 | G38: ='Workings (A)'!G38 -> 45
A41: APR Calculation Input Values
A42: Total Amount Payable (in facility fees) | C42: =+C36 -> 1080652.028 | D42: Total Payable less Other Fees | F42: =+C42-C44 -> 1080607.028
A43: Credit Limit | C43: =C33 -> 1039545 | D43: Periodic Payment | F43: =((C43*(1+C45))/C46) -> 90050.58563 | L43: Financed | U43: =C42 -> 1080652.028
A44: Other Fees | C44: =+C35 -> 45 | H44: Credit Limit | K44: =-C43 -> -1039545 | L44: =+K44+(K56*K60) -> -1039545 | N44: month | O44: b/f | P44: instal | Q44: net | R44: interest - month | S44: c/f | T44: IRR | U44: Total Payable | V44: NPV | W44: Rate
A45: Interest Rate (Flat) | C45: =MAX(+B34,B38) -> 0.0395 | N45: 0 | O45: =+K44+(K60*K56) -> -1039545 | P45: 0 | Q45: =+O45+P45 -> -1039545 | R45: =+Q45*$K$62 -> -6255.588045 | S45: =+Q45+R45 -> -1045800.588 | T45: =L44+P45 -> -1039545 | U45: =+U43-P45 -> 1080652.028 | V45: =+T45 -> -1039545
A46: Number of Periods | C46: 12 | H46: Service Charge | J46: =+C45 -> 0.0395 | K46: =+K44*J46 -> -41062.0275 | N46: 1 | O46: =+S45 -> -1045800.588 | P46: =IF(N46>K$58,0,K$60)+I50 -> 90095.58563 | Q46: -955705.0024 | R46: =+Q46*$K$62 -> -5751.070697 | S46: -961456.0731 | T46: =+P46 -> 90095.58563 | U46: =+U45-P46 -> 990556.4419 | V46: =NPV(W46,T46) -> 89556.66752 | W46: =(1+K$62)^N46-1 -> 0.006017621214
I47: (net of any subsidy) | J47: =+L47/L44 -> 0.0395 | L47: =+K46 -> -41062.0275 | N47: 2 | O47: -961456.0731 | P47: =IF(N47>K$58,0,K$60) -> 90050.58563 | Q47: -871405.4875 | R47: -5243.788147 | S47: -876649.2756 | T47: 90050.58563 | U47: 900505.8562 | V47: 88976.50976 | W47: 0.01207145419
H48: Total Payable by Customer | K48: =+K44+K46 -> -1080607.028 | L48: =+L44+L47 -> -1080607.028 | N48: 3 | O48: -876649.2756 | P48: =IF(N48>K$58,0,K$60) -> 90050.58563 | Q48: -786598.69 | R48: -4733.452964 | S48: -791332.143 | T48: 90050.58563 | U48: 810455.2706 | V48: 88444.28555 | W48: 0.01816171684
A49: Proof | N49: 4 | O49: -791332.143 | P49: 90050.58563 | Q49: -701281.5574 | R49: -4220.046776 | S49: -705501.6041 | T49: 90050.58563 | U49: 720404.685 | V49: 87915.24491 | W49: 0.02428862839
A50: Credit Limit | C50: =+C43 -> 1039545 | H50: Facility Fee | I50: =+C44 -> 45 | J50: YES | K50: =IF(J50="YES",-I50,0) -> -45 | N50: 5 | O50: -705501.6041 | P50: 90050.58563 | Q50: -615451.0185 | R50: -3703.551105 | S50: -619154.5696 | T50: 90050.58563 | U50: 630354.0994 | V50: 87389.36879 | W50: 0.03045240937
A51: Service Charge | C51: =+C50*C45 -> 41062.0275 | H51: Balance Payable by Instalments | K51: =+K48+K50 -> -1080652.028 | N51: 6 | O51: -619154.5696 | P51: 90050.58563 | Q51: -529103.984 | R51: -3183.947358 | S51: -532287.9313 | T51: 90050.58563 | U51: 540303.5137 | V51: 86866.63827 | W51: 0.03665328165
A52: Other Fees | C52: =+C44 -> 45 | N52: 7 | O52: -532287.9313 | P52: 90050.58563 | Q52: -442237.3457 | R52: -2661.216833 | S52: -444898.5625 | T52: 90050.58563 | U52: 450252.9281 | V52: 86347.03452 | W52: 0.04289146843
C53: =+C50+C51+C52 -> 1080652.028 | N53: 8 | O53: -444898.5625 | P53: 90050.58563 | Q53: -354847.9769 | R53: -2135.340714 | S53: -356983.3176 | T53: 90050.58563 | U53: 360202.3425 | V53: 85830.53885 | W53: 0.04916719425
H54: Instalments - Total payable by customer | K54: =+C46 -> 12 | N54: 9 | O54: -356983.3176 | P54: 90050.58563 | Q54: -266932.732 | R54: -1606.300071 | S54: -268539.0321 | T54: 90050.58563 | U54: 270151.7569 | V54: 85317.13266 | W54: 0.05548068502
N55: 10 | O55: -268539.0321 | P55: 90050.58563 | Q55: -178488.4465 | R55: -1074.075862 | S55: -179562.5223 | T55: 90050.58563 | U55: 180101.1712 | V55: 84806.79748 | W55: 0.06183216798
H56: Instalments - held by broker | K56: 0 | N56: 11 | O56: -179562.5223 | P56: 90050.58563 | Q56: -89511.9367 | R56: -538.6489291 | S56: -90050.58562 | T56: 90050.58563 | U56: 90050.58562 | V56: 84299.51493 | W56: 0.06822187176
N57: 12 | O57: -90050.58562 | P57: 90050.58563 | Q57: 1.235457603e-08 | R57: 7.43451588e-11 | S57: 1.242892119e-08 | T57: 90050.58563 | U57: -3.492459655e-10 | V57: 83795.26675 | W57: 0.07465002635
H58: Instalments - payable to PCL | K58: =+K54-K56 -> 12 | L58: =+K58 -> 12 | P58: =SUM(P45:P57) -> 1080652.028 | R58: =SUM(R45:R57) -> -41107.0275 | T58: =SUM(T45:T57) -> 41107.0275 | V58: =SUM(V45:V57) -> 1.174339559e-08
H60: Amount of instalment | K60: =F43 -> 90050.58563 | L60: =+K60 -> 90050.58563
H62: Interest Rate | I62: Per Month | K62: =IRR(T45:T57,1%) -> 0.006017621214
H63: Interest Rate | I63: Annual | K63: =+K62*12 -> 0.07221145456
H65: APR | I65: Precise | K65: =((1+K62)^12)-1 -> 0.07465002635
H66: APR | I66: Official | K66: =ROUND(+K65*100,1)/100 -> 0.075
H68: Start | K68: 2014-01-01
H70: End | K70: =+K68+K54*(365/12) -> 2015-01-01
G72: N.B. | H72: The computation does not require dates
H73: Assumed that all Instalments are paid monthly in arrears commencing on day 1 of month 2
